[Event "7° Rencontres Internationales des Echecs Francophones"]
[Site "PARIS, France"]
[Date "2019.08.10"]
[Round "8.8"]
[White "Delorme, Alban"]
[Black "Hamdouchi, Hicham"]
[Result "0-1"]
[TimeControl "90'+30' + 30seconds/move"]
[WhiteElo "2227"]
[BlackElo "2514"]

1. d4 {[%clk 00:05:04]} {[%emt 00:00:02]} d6 {[%clk 00:05:05]} {[%emt
00:00:04]} 2. Nf3 {[%clk 00:05:04]} {[%emt 00:00:01]} g6 {[%clk 00:05:06]}
{[%emt 00:00:04]} 3. g3 {[%clk 00:05:06]} Bg7 {[%clk 00:05:03]} {[%emt
00:00:04]} 4. Bg2 {[%clk 00:05:07]} {[%emt 00:00:01]} Nf6 {[%clk 00:05:05]}
{[%emt 00:00:02]} 5. O-O {[%clk 00:05:08]} {[%emt 00:00:01]} O-O {[%clk
00:05:06]} {[%emt 00:00:02]} 6. a4 {[%clk 00:05:10]} {[%emt 00:00:03]} a5
{[%clk 00:05:03]} {[%emt 00:00:04]} 7. Re1 {[%clk 00:05:11]} {[%emt 00:00:01]}
Nbd7 {[%clk 00:04:43]} {[%emt 00:00:24]} 8. e4 {[%clk 00:05:11]} {[%emt
00:00:02]} e5 {[%clk 00:04:45]} {[%emt 00:00:01]} 9. Nc3 {[%clk 00:05:12]}
{[%emt 00:00:02]} c6 {[%clk 00:04:41]} {[%emt 00:00:06]} 10. h3 {[%clk
00:05:14]} {[%emt 00:00:03]} Re8 {[%clk 00:04:41]} {[%emt 00:00:02]} 11. Be3
{[%clk 00:05:16]} {[%emt 00:00:02]} exd4 {[%clk 00:04:34]} {[%emt 00:00:11]} 12.
Nxd4 {[%clk 00:05:17]} Nc5 {[%clk 00:04:32]} {[%emt 00:00:07]} 13. Bf4 {[%clk
00:05:11]} {[%emt 00:00:08]} Nh5 {[%clk 00:04:16]} {[%emt 00:00:18]} 14. Be3
{[%clk 00:05:13]} {[%emt 00:00:02]} Qc7 {[%clk 00:04:13]} {[%emt 00:00:06]} 15.
Qd2 {[%clk 00:05:05]} {[%emt 00:00:10]} Bd7 {[%clk 00:04:05]} {[%emt 00:00:12]}
16. Rad1 {[%clk 00:05:03]} {[%emt 00:00:04]} Rad8 {[%clk 00:04:07]} {[%emt
00:00:02]} 17. Bg5 {[%clk 00:04:56]} {[%emt 00:00:09]} Bf6 {[%clk 00:03:54]}
{[%emt 00:00:17]} 18. Nf5 {[%clk 00:03:53]} {[%emt 00:01:06]} Bxf5 {[%clk
00:03:44]} {[%emt 00:00:13]} 19. exf5 {[%clk 00:03:53]} {[%emt 00:00:02]} d5
{[%clk 00:03:37]} {[%emt 00:00:10]} 20. Bf3 {[%clk 00:01:58]} {[%emt 00:01:58]}
Bxg5 {[%clk 00:03:14]} {[%emt 00:00:27]} 21. Qxg5 {[%clk 00:01:59]} {[%emt
00:00:02]} Ng7 {[%clk 00:03:16]} {[%emt 00:00:01]} 22. f6 {[%clk 00:01:14]}
{[%emt 00:00:47]} Nge6 {[%clk 00:03:15]} {[%emt 00:00:04]} 23. Qh6 {[%clk
00:01:16]} {[%emt 00:00:02]} Qd6 {[%clk 00:03:06]} {[%emt 00:00:12]} 24. b3
{[%clk 00:00:21]} {[%emt 00:00:58]} Qf8 {[%clk 00:03:03]} {[%emt 00:00:06]} 25.
Qd2 {[%clk 00:00:23]} {[%emt 00:00:02]} Nd7 {[%clk 00:02:55]} {[%emt 00:00:11]}
26. Ne2 {[%clk 00:00:07]} {[%emt 00:00:19]} Qc5 {[%clk 00:02:32]} {[%emt
00:00:25]} 27. Nf4 {[%clk 00:00:04]} {[%emt 00:00:06]} Nxf6 {[%clk 00:02:26]}
{[%emt 00:00:08]} 28. Nxe6 {[%clk 00:00:06]} {[%emt 00:00:01]} fxe6 {[%clk
00:02:22]} {[%emt 00:00:07]} 29. Qg5 {[%clk 00:00:04]} {[%emt 00:00:05]} Kg7
{[%clk 00:02:06]} {[%emt 00:00:19]} 30. g4 {[%clk 00:00:06]} Qxc2 {[%clk
00:01:43]} {[%emt 00:00:26]} 31. Qe5 {[%clk 00:00:08]} {[%emt 00:00:01]} Kf7
{[%clk 00:01:37]} {[%emt 00:00:10]} 32. Re3 {[%clk 00:00:04]} {[%emt 00:00:07]}
Qc5 {[%clk 00:01:18]} {[%emt 00:00:22]} 33. Qf4 {[%clk 00:00:05]} {[%emt
00:00:02]} Kg7 {[%clk 00:01:14]} {[%emt 00:00:07]} 34. Qe5 {[%clk 00:00:04]}
{[%emt 00:00:04]} Qd6 {[%clk 00:01:14]} {[%emt 00:00:04]} 35. Qc3 {[%clk
00:00:06]} e5 {[%clk 00:01:12]} {[%emt 00:00:05]} 36. Qxa5 {[%clk 00:00:07]}
{[%emt 00:00:02]} e4 {[%clk 00:01:12]} {[%emt 00:00:03]} 37. Bg2 {[%clk
00:00:09]} {[%emt 00:00:01]} Qf4 {[%clk 00:01:12]} {[%emt 00:00:03]} 38. Qd2
{[%clk 00:00:10]} {[%emt 00:00:02]} d4 {[%clk 00:01:05]} {[%emt 00:00:10]} 39.
Ree1 {[%clk 00:00:08]} {[%emt 00:00:05]} e3 {[%clk 00:00:54]} {[%emt 00:00:14]}
40. fxe3 {[%clk 00:00:05]} {[%emt 00:00:06]} dxe3 {[%clk 00:00:56]} {[%emt
00:00:02]} 41. Qe2 {[%clk 00:00:06]} Rd2 {[%clk 00:00:52]} {[%emt 00:00:07]} 42.
Qf3 {[%clk 00:00:00]} {[%emt 00:00:06]} 0-1

[Event "7° Rencontres Internationales des Echecs Francophones"]
[Site "PARIS, France"]
[Date "2019.08.10"]
[Round "8.9"]
[White "Metral, Jean-Paul"]
[Black "Chabanon, Jean-Luc"]
[Result "0-1"]
[TimeControl "90'+30' + 30seconds/move"]
[WhiteElo "2161"]
[BlackElo "2448"]

1. d4 {[%clk 00:05:05]} Nf6 {[%emt 00:00:06]} 2. Nf3 g6 {[%clk 00:05:03]}
{[%emt 00:00:03]} 3. Bf4 {[%clk 00:04:53]} {[%emt 00:00:16]} Bg7 {[%clk
00:05:02]} {[%emt 00:00:04]} 4. c3 {[%clk 00:04:46]} {[%emt 00:00:10]} O-O
{[%clk 00:05:01]} {[%emt 00:00:04]} 5. h4 {[%clk 00:04:38]} {[%emt 00:00:11]}
d6 {[%clk 00:04:56]} {[%emt 00:00:09]} 6. Nbd2 {[%clk 00:04:18]} {[%emt
00:00:23]} Nbd7 {[%clk 00:04:27]} {[%emt 00:00:32]} 7. e4 {[%clk 00:04:17]}
{[%emt 00:00:03]} Nh5 {[%clk 00:03:42]} {[%emt 00:00:49]} 8. Bg5 {[%clk
00:04:10]} {[%emt 00:00:09]} h6 {[%clk 00:03:40]} {[%emt 00:00:05]} 9. Be3
{[%clk 00:04:12]} {[%emt 00:00:01]} e5 {[%clk 00:03:39]} {[%emt 00:00:05]} 10.
Bc4 {[%clk 00:04:02]} {[%emt 00:00:12]} Qe7 {[%clk 00:03:21]} {[%emt 00:00:21]}
11. Qc2 {[%clk 00:02:58]} {[%emt 00:01:07]} c6 {[%clk 00:03:09]} {[%emt
00:00:15]} 12. O-O-O {[%clk 00:02:58]} {[%emt 00:00:07]} b5 {[%clk 00:03:10]}
13. Bb3 {[%clk 00:02:54]} {[%emt 00:00:06]} Bb7 {[%clk 00:02:07]} {[%emt
00:01:06]} 14. g4 {[%clk 00:02:52]} {[%emt 00:00:05]} Nf4 {[%clk 00:02:03]}
{[%emt 00:00:06]} 15. Bxf4 {[%clk 00:02:50]} {[%emt 00:00:05]} exf4 {[%clk
00:02:05]} {[%emt 00:00:02]} 16. Rdg1 {[%clk 00:02:33]} {[%emt 00:00:19]} c5
{[%clk 00:01:50]} {[%emt 00:00:20]} 17. a3 {[%clk 00:01:44]} {[%emt 00:00:51]}
c4 {[%clk 00:01:49]} {[%emt 00:00:04]} 18. Ba2 {[%clk 00:01:45]} {[%emt
00:00:02]} d5 {[%clk 00:01:44]} {[%emt 00:00:08]} 19. e5 {[%clk 00:01:44]}
{[%emt 00:00:05]} Rfb8 {[%clk 00:01:38]} {[%emt 00:00:09]} 20. h5 {[%clk
00:01:45]} {[%emt 00:00:01]} g5 {[%clk 00:01:39]} {[%emt 00:00:02]} 21. Bb1
{[%clk 00:01:46]} {[%emt 00:00:03]} Nf8 {[%clk 00:01:28]} {[%emt 00:00:15]} 22.
Nxg5 {[%clk 00:01:31]} {[%emt 00:00:17]} hxg5 {[%clk 00:00:39]} {[%emt
00:00:52]} 23. h6 {[%clk 00:01:33]} Bxe5 {[%clk 00:00:35]} {[%emt 00:00:07]} 24.
dxe5 {[%clk 00:01:28]} {[%emt 00:00:07]} d4 {[%clk 00:00:34]} {[%emt 00:00:04]}
25. Qf5 {[%clk 00:01:23]} {[%emt 00:00:08]} Bc8 {[%clk 00:00:15]} {[%emt
00:00:23]} 26. Qe4 {[%clk 00:01:08]} {[%emt 00:00:18]} dxc3 {[%clk 00:00:12]}
{[%emt 00:00:06]} 27. Nf3 {[%clk 00:00:39]} {[%emt 00:00:31]} cxb2+ {[%clk
00:00:14]} {[%emt 00:00:01]} 28. Kxb2 {[%clk 00:00:34]} {[%emt 00:00:09]} b4
{[%clk 00:00:16]} {[%emt 00:00:01]} 29. a4 {[%clk 00:00:36]} {[%emt 00:00:01]}
c3+ {[%clk 00:00:17]} {[%emt 00:00:02]} 30. Kc1 {[%clk 00:00:13]} {[%emt
00:00:26]} Bb7 {[%clk 00:00:10]} {[%emt 00:00:10]} 31. Qe2 {[%clk 00:00:14]}
{[%emt 00:00:02]} b3 {[%clk 00:00:11]} {[%emt 00:00:02]} 32. Rh5 {[%clk
00:00:14]} {[%emt 00:00:03]} Qa3+ {[%clk 00:00:12]} {[%emt 00:00:02]} 33. Kd1
{[%clk 00:00:16]} {[%emt 00:00:02]} Rd8+ {[%clk 00:00:14]} 34. Ke1 {[%clk
00:00:17]} Qc1+ {[%clk 00:00:15]} {[%emt 00:00:02]} 0-1

[Event "7° Rencontres Internationales des Echecs Francophones"]
[Site "PARIS, France"]
[Date "2019.08.10"]
[Round "8.2"]
[White "Dardha, Daniel"]
[Black "Moussard, Jules"]
[Result "1-0"]
[TimeControl "90'+30' + 30seconds/move"]
[WhiteElo "2390"]
[BlackElo "2613"]

1. Nf3 {[%clk 00:05:05]} d6 {[%clk 00:05:03]} {[%emt 00:00:04]} 2. d4 {[%clk
00:05:05]} {[%emt 00:00:04]} f5 {[%clk 00:05:04]} {[%emt 00:00:02]} 3. c4
{[%clk 00:05:01]} {[%emt 00:00:05]} Nf6 {[%clk 00:05:06]} {[%emt 00:00:02]} 4.
Nc3 {[%clk 00:05:02]} {[%emt 00:00:01]} g6 {[%clk 00:05:08]} {[%emt 00:00:01]}
5. g3 {[%clk 00:05:03]} {[%emt 00:00:04]} Bg7 {[%clk 00:05:09]} 6. Bg2 {[%clk
00:05:05]} {[%emt 00:00:02]} O-O {[%clk 00:05:11]} 7. O-O {[%clk 00:05:06]}
{[%emt 00:00:01]} c6 {[%clk 00:05:10]} {[%emt 00:00:06]} 8. Bf4 {[%clk
00:04:52]} {[%emt 00:00:14]} Nh5 {[%clk 00:05:11]} {[%emt 00:00:02]} 9. Bg5
{[%clk 00:04:45]} {[%emt 00:00:11]} h6 {[%clk 00:05:13]} 10. Bd2 {[%clk
00:04:47]} {[%emt 00:00:01]} e5 {[%clk 00:05:12]} {[%emt 00:00:05]} 11. dxe5
{[%clk 00:04:38]} {[%emt 00:00:11]} dxe5 {[%clk 00:05:14]} 12. e4 {[%clk
00:04:33]} {[%emt 00:00:08]} f4 {[%clk 00:05:15]} {[%emt 00:00:02]} 13. Na4
{[%clk 00:04:16]} {[%emt 00:00:21]} Qe7 {[%clk 00:05:14]} {[%emt 00:00:03]} 14.
Qb3 {[%clk 00:04:12]} {[%emt 00:00:07]} Na6 {[%clk 00:05:14]} {[%emt 00:00:03]}
15. Bc3 {[%clk 00:02:25]} {[%emt 00:01:50]} Kh7 {[%clk 00:05:15]} {[%emt
00:00:02]} 16. Qa3 {[%clk 00:02:25]} {[%emt 00:00:04]} Qxa3 {[%clk 00:04:59]}
{[%emt 00:00:19]} 17. bxa3 {[%clk 00:02:27]} Re8 {[%clk 00:04:58]} {[%emt
00:00:03]} 18. Rab1 {[%clk 00:02:21]} {[%emt 00:00:09]} b6 {[%clk 00:04:48]}
{[%emt 00:00:13]} 19. Rfd1 {[%clk 00:02:20]} {[%emt 00:00:04]} Bg4 {[%clk
00:04:38]} {[%emt 00:00:14]} 20. Rd6 {[%clk 00:01:53]} {[%emt 00:00:29]} Rac8
{[%clk 00:04:39]} {[%emt 00:00:03]} 21. Nh4 {[%clk 00:01:32]} {[%emt 00:00:24]}
Be6 {[%clk 00:04:31]} {[%emt 00:00:11]} 22. Rbd1 {[%clk 00:01:04]} {[%emt
00:00:31]} Rc7 {[%clk 00:03:52]} {[%emt 00:00:42]} 23. Bf1 {[%clk 00:00:48]}
{[%emt 00:00:18]} Nb8 {[%clk 00:03:47]} {[%emt 00:00:08]} 24. c5 {[%clk
00:00:45]} {[%emt 00:00:07]} b5 {[%clk 00:03:45]} {[%emt 00:00:04]} 25. Nb2
{[%clk 00:00:46]} {[%emt 00:00:02]} fxg3 {[%clk 00:03:32]} {[%emt 00:00:16]} 26.
hxg3 {[%clk 00:00:48]} {[%emt 00:00:02]} Bf7 {[%clk 00:03:23]} {[%emt
00:00:12]} 27. Nd3 {[%clk 00:00:46]} {[%emt 00:00:06]} Na6 {[%clk 00:02:39]}
{[%emt 00:00:46]} 28. Nf3 {[%clk 00:00:46]} {[%emt 00:00:02]} Bxa2 {[%clk
00:02:36]} {[%emt 00:00:06]} 29. Bxe5 {[%clk 00:00:43]} {[%emt 00:00:06]} Bxe5
{[%clk 00:02:33]} {[%emt 00:00:07]} 30. Ndxe5 {[%clk 00:00:44]} {[%emt
00:00:02]} Nxc5 {[%clk 00:02:34]} {[%emt 00:00:02]} 31. Rxc6 {[%clk 00:00:37]}
{[%emt 00:00:10]} Rxc6 {[%clk 00:02:24]} {[%emt 00:00:13]} 32. Nxc6 {[%clk
00:00:39]} Rxe4 {[%clk 00:02:15]} {[%emt 00:00:11]} 33. Nxa7 {[%clk 00:00:38]}
{[%emt 00:00:04]} b4 {[%clk 00:02:04]} {[%emt 00:00:15]} 34. axb4 {[%clk
00:00:37]} {[%emt 00:00:04]} Rxb4 {[%clk 00:02:06]} {[%emt 00:00:01]} 35. Nc6
{[%clk 00:00:38]} {[%emt 00:00:01]} Rb6 {[%clk 00:02:02]} {[%emt 00:00:07]} 36.
Nce5 {[%clk 00:00:39]} {[%emt 00:00:02]} Nf6 {[%clk 00:02:00]} {[%emt
00:00:05]} 37. Rc1 {[%clk 00:00:41]} {[%emt 00:00:02]} Nfe4 {[%clk 00:01:35]}
{[%emt 00:00:27]} 38. Nd3 {[%clk 00:00:35]} {[%emt 00:00:08]} Ne6 {[%clk
00:01:28]} {[%emt 00:00:11]} 39. Ra1 {[%clk 00:00:36]} {[%emt 00:00:03]} Bd5
{[%clk 00:01:28]} {[%emt 00:00:03]} 40. Ra7+ {[%clk 00:00:37]} Rb7 {[%clk
00:01:30]} {[%emt 00:00:03]} 41. Ra5 {[%clk 00:00:36]} {[%emt 00:00:04]} Nc3
{[%clk 00:01:29]} {[%emt 00:00:03]} 42. Nfe5 {[%clk 00:00:30]} {[%emt
00:00:10]} Nd4 {[%clk 00:01:25]} {[%emt 00:00:06]} 43. Nf4 {[%clk 00:00:29]}
{[%emt 00:00:04]} Be4 {[%clk 00:01:01]} {[%emt 00:00:27]} 44. Rc5 {[%clk
00:00:31]} g5 {[%clk 00:00:47]} {[%emt 00:00:17]} 45. Rxc3 {[%clk 00:00:27]}
{[%emt 00:00:07]} gxf4 {[%clk 00:00:49]} 46. Rc4 {[%clk 00:00:25]} {[%emt
00:00:06]} Re7 {[%clk 00:00:45]} {[%emt 00:00:03]} 47. Rxd4 {[%clk 00:00:27]}
{[%emt 00:00:03]} Bf5 {[%clk 00:00:35]} {[%emt 00:00:13]} 48. gxf4 {[%clk
00:00:28]} {[%emt 00:00:01]} Kg7 {[%clk 00:00:37]} {[%emt 00:00:01]} 49. Bg2
{[%clk 00:00:29]} {[%emt 00:00:02]} Ra7 {[%clk 00:00:37]} {[%emt 00:00:02]} 50.
Kh2 {[%clk 00:00:31]} Ra2 {[%clk 00:00:39]} {[%emt 00:00:01]} 51. Kg3 {[%clk
00:00:33]} {[%emt 00:00:01]} Ra3+ {[%clk 00:00:41]} {[%emt 00:00:01]} 52. Bf3
{[%clk 00:00:32]} {[%emt 00:00:03]} Ra1 {[%clk 00:00:43]} {[%emt 00:00:02]} 53.
Be4 {[%clk 00:00:29]} {[%emt 00:00:06]} Bc8 {[%clk 00:00:34]} {[%emt 00:00:12]}
54. Rc4 {[%clk 00:00:30]} {[%emt 00:00:02]} Be6 {[%clk 00:00:35]} {[%emt
00:00:02]} 55. Rc7+ {[%clk 00:00:32]} {[%emt 00:00:01]} Kf6 {[%clk 00:00:36]}
{[%emt 00:00:03]} 56. Ng4+ {[%clk 00:00:31]} {[%emt 00:00:03]} Bxg4 {[%clk
00:00:38]} {[%emt 00:00:01]} 57. Kxg4 {[%clk 00:00:33]} Rg1+ {[%clk 00:00:39]}
{[%emt 00:00:02]} 58. Kf3 {[%clk 00:00:35]} {[%emt 00:00:01]} Rh1 {[%clk
00:00:40]} {[%emt 00:00:03]} 59. Rc6+ {[%emt 00:00:02]} Kg7 60. f5 {[%clk
00:00:37]} {[%emt 00:00:01]} Rd1 {[%clk 00:00:40]} {[%emt 00:00:05]} 61. Kf4
{[%clk 00:00:38]} {[%emt 00:00:02]} Rd2 {[%clk 00:00:42]} {[%emt 00:00:01]} 62.
Ke5 {[%clk 00:00:38]} {[%emt 00:00:03]} h5 {[%clk 00:00:45]} 63. Rc7+ {[%clk
00:00:39]} {[%emt 00:00:02]} Kh6 {[%clk 00:00:46]} 64. f6 {[%clk 00:00:40]}
{[%emt 00:00:02]} h4 {[%clk 00:00:47]} {[%emt 00:00:03]} 65. Rh7+ {[%clk
00:00:16]} {[%emt 00:00:26]} Kg5 {[%clk 00:00:49]} 66. f7 {[%clk 00:00:17]}
{[%emt 00:00:03]} Rxf2 {[%clk 00:00:48]} {[%emt 00:00:04]} 67. Bd5 {[%clk
00:00:12]} {[%emt 00:00:07]} Rf5+ {[%clk 00:00:31]} {[%emt 00:00:20]} 68. Ke6
{[%clk 00:00:13]} {[%emt 00:00:02]} Rf4 {[%clk 00:00:34]} 69. Rh8 {[%clk
00:00:14]} {[%emt 00:00:03]} Rf6+ {[%clk 00:00:31]} {[%emt 00:00:06]} 70. Ke7
{[%clk 00:00:15]} h3 {[%clk 00:00:33]} {[%emt 00:00:02]} 71. Rxh3 {[%clk
00:00:17]} {[%emt 00:00:01]} Rf4 {[%clk 00:00:05]} {[%emt 00:00:31]} 72. f8=Q
{[%clk 00:00:17]} {[%emt 00:00:02]} Kg4 {[%clk 00:00:04]} {[%emt 00:00:04]} 73.
Rh4+ {[%clk 00:00:17]} {[%emt 00:00:03]} 1-0

[Event "7° Rencontres Internationales des Echecs Francophones"]
[Site "PARIS, France"]
[Date "2019.08.10"]
[Round "8.7"]
[White "Sebag, Marie"]
[Black "Huynh, Laurent"]
[Result "0-1"]
[TimeControl "90'+30' + 30seconds/move"]
[WhiteElo "2494"]
[BlackElo "2135"]

1. e4 {[%clk 00:05:05]} e5 {[%clk 00:05:05]} {[%emt 00:00:02]} 2. Nf3 {[%clk
00:05:07]} {[%emt 00:00:03]} Nc6 {[%clk 00:05:05]} {[%emt 00:00:01]} 3. Bc4
{[%clk 00:05:04]} {[%emt 00:00:06]} Bc5 {[%clk 00:05:07]} 4. c3 {[%clk
00:05:05]} {[%emt 00:00:02]} Nf6 {[%clk 00:05:08]} {[%emt 00:00:02]} 5. d3
{[%clk 00:05:07]} {[%emt 00:00:02]} d6 {[%clk 00:05:09]} 6. O-O {[%clk
00:05:07]} {[%emt 00:00:03]} a6 {[%clk 00:05:11]} {[%emt 00:00:03]} 7. Bb3
{[%clk 00:05:06]} {[%emt 00:00:02]} Ba7 {[%clk 00:05:13]} 8. Nbd2 {[%clk
00:05:08]} {[%emt 00:00:01]} O-O {[%clk 00:05:14]} {[%emt 00:00:03]} 9. h3
{[%clk 00:05:09]} {[%emt 00:00:02]} h6 {[%clk 00:05:15]} {[%emt 00:00:02]} 10.
Re1 {[%clk 00:05:08]} {[%emt 00:00:03]} Nh5 {[%clk 00:05:16]} {[%emt 00:00:02]}
11. Nf1 {[%clk 00:05:03]} {[%emt 00:00:08]} Qf6 {[%clk 00:05:07]} {[%emt
00:00:13]} 12. Be3 {[%clk 00:05:00]} {[%emt 00:00:07]} Nf4 {[%clk 00:04:58]}
{[%emt 00:00:10]} 13. d4 {[%clk 00:04:45]} {[%emt 00:00:18]} g6 {[%clk
00:04:35]} {[%emt 00:00:26]} 14. Ng3 {[%clk 00:04:23]} {[%emt 00:00:25]} h5
{[%clk 00:04:36]} {[%emt 00:00:03]} 15. Kh2 {[%clk 00:03:50]} {[%emt 00:00:35]}
Kg7 {[%clk 00:04:10]} {[%emt 00:00:29]} 16. Qd2 {[%clk 00:03:22]} {[%emt
00:00:32]} Na5 {[%clk 00:03:45]} {[%emt 00:00:28]} 17. Bxf4 {[%clk 00:02:55]}
{[%emt 00:00:30]} exf4 {[%clk 00:03:30]} {[%emt 00:00:18]} 18. Ne2 {[%clk
00:02:57]} Nxb3 {[%clk 00:03:31]} {[%emt 00:00:02]} 19. axb3 {[%clk 00:02:59]}
{[%emt 00:00:01]} g5 {[%clk 00:03:32]} {[%emt 00:00:02]} 20. e5 {[%clk
00:02:56]} {[%emt 00:00:06]} Qg6 {[%clk 00:03:31]} {[%emt 00:00:04]} 21. exd6
{[%clk 00:02:40]} {[%emt 00:00:20]} cxd6 {[%clk 00:03:32]} {[%emt 00:00:01]} 22.
h4 {[%clk 00:02:11]} {[%emt 00:00:32]} f6 {[%clk 00:03:27]} {[%emt 00:00:08]}
23. Nxf4 {[%clk 00:01:20]} {[%emt 00:00:53]} gxf4 {[%clk 00:03:18]} {[%emt
00:00:12]} 24. Qxf4 {[%clk 00:01:22]} Bg4 {[%clk 00:03:15]} {[%emt 00:00:05]}
25. Nd2 {[%clk 00:01:16]} {[%emt 00:00:09]} d5 {[%clk 00:03:17]} {[%emt
00:00:02]} 26. g3 {[%clk 00:01:03]} {[%emt 00:00:16]} Bb8 {[%clk 00:03:08]}
{[%emt 00:00:12]} 27. Re7+ {[%clk 00:01:00]} {[%emt 00:00:07]} Rf7 {[%clk
00:03:09]} {[%emt 00:00:01]} 28. Qe3 {[%clk 00:00:55]} {[%emt 00:00:06]} Bd6
{[%clk 00:03:05]} {[%emt 00:00:09]} 29. Rxf7+ {[%clk 00:00:48]} {[%emt
00:00:10]} Qxf7 {[%clk 00:03:05]} {[%emt 00:00:03]} 30. Re1 {[%clk 00:00:50]}
b5 {[%clk 00:02:57]} {[%emt 00:00:12]} 31. b4 {[%clk 00:00:49]} {[%emt
00:00:04]} Bd7 {[%clk 00:02:54]} {[%emt 00:00:05]} 32. Qf3 {[%clk 00:00:49]}
{[%emt 00:00:03]} Re8 {[%clk 00:02:51]} {[%emt 00:00:07]} 33. Rxe8 {[%clk
00:00:50]} {[%emt 00:00:01]} Bxe8 {[%clk 00:02:52]} {[%emt 00:00:02]} 34. Nf1
{[%clk 00:00:53]} f5 {[%clk 00:02:33]} {[%emt 00:00:22]} 35. Kg2 {[%clk
00:00:31]} {[%emt 00:00:24]} f4 {[%clk 00:02:27]} {[%emt 00:00:09]} 36. gxf4
{[%clk 00:00:27]} {[%emt 00:00:07]} Bxf4 {[%clk 00:02:19]} {[%emt 00:00:12]} 37.
Ne3 {[%clk 00:00:23]} {[%emt 00:00:07]} Bxe3 {[%clk 00:02:18]} {[%emt
00:00:03]} 38. Qxe3 {[%clk 00:00:25]} Qg6+ {[%clk 00:02:09]} {[%emt 00:00:12]}
39. Kh2 {[%clk 00:00:27]} {[%emt 00:00:01]} Bf7 {[%clk 00:01:57]} {[%emt
00:00:15]} 40. Qe5+ {[%clk 00:00:28]} {[%emt 00:00:03]} Qf6 {[%clk 00:01:52]}
{[%emt 00:00:08]} 41. Qg3+ {[%clk 00:00:30]} Kh7 {[%clk 00:01:40]} {[%emt
00:00:15]} 42. Qd3+ {[%clk 00:00:26]} {[%emt 00:00:07]} Bg6 {[%clk 00:01:41]}
{[%emt 00:00:02]} 43. Qg3 {[%clk 00:00:28]} Be4 {[%clk 00:01:37]} {[%emt
00:00:07]} 44. Qc7+ {[%clk 00:00:27]} {[%emt 00:00:05]} Kh6 {[%clk 00:01:28]}
{[%emt 00:00:11]} 45. Qg3 {[%clk 00:00:28]} {[%emt 00:00:02]} Bf3 {[%clk
00:01:07]} {[%emt 00:00:24]} 46. b3 {[%clk 00:00:22]} {[%emt 00:00:10]} Be4
{[%clk 00:00:55]} {[%emt 00:00:17]} 47. f4 {[%clk 00:00:23]} Qg6 {[%clk
00:00:56]} {[%emt 00:00:01]} 48. Qf2 {[%clk 00:00:24]} {[%emt 00:00:02]} Qg4
{[%clk 00:00:54]} {[%emt 00:00:06]} 49. c4 {[%clk 00:00:20]} {[%emt 00:00:06]}
bxc4 {[%clk 00:00:53]} {[%emt 00:00:05]} 50. bxc4 {[%clk 00:00:22]} dxc4 {[%clk
00:00:46]} {[%emt 00:00:10]} 51. d5 {[%clk 00:00:25]} Bxd5 {[%clk 00:00:35]}
{[%emt 00:00:14]} 52. f5 {[%clk 00:00:27]} Qg2+ {[%clk 00:00:34]} {[%emt
00:00:04]} 53. Qxg2 {[%clk 00:00:30]} Bxg2 {[%clk 00:00:36]} 54. Kxg2 {[%clk
00:00:31]} {[%emt 00:00:01]} c3 {[%clk 00:00:39]} 0-1

[Event "7° Rencontres Internationales des Echecs Francophones"]
[Site "PARIS, France"]
[Date "2019.08.10"]
[Round "8.4"]
[White "Shchekachev, Andrei"]
[Black "Rakotomaharo, Fy Antenaina"]
[Result "1-0"]
[TimeControl "90'+30' + 30seconds/move"]
[WhiteElo "2446"]
[BlackElo "2364"]

1. Nf3 {[%clk 00:05:04]} Nf6 {[%clk 00:05:06]} 2. c4 {[%clk 00:05:04]} {[%emt
00:00:05]} g6 {[%clk 00:05:08]} 3. Nc3 {[%clk 00:05:05]} {[%emt 00:00:04]} d5
{[%clk 00:05:11]} 4. cxd5 {[%clk 00:05:01]} {[%emt 00:00:05]} Nxd5 {[%clk
00:05:13]} 5. Qa4+ {[%clk 00:05:03]} {[%emt 00:00:02]} Bd7 {[%clk 00:05:01]}
{[%emt 00:00:15]} 6. Qc2 {[%clk 00:05:04]} Nb6 {[%clk 00:04:56]} {[%emt
00:00:08]} 7. d4 {[%clk 00:05:04]} {[%emt 00:00:03]} Bg7 {[%clk 00:04:58]} 8.
e4 {[%clk 00:05:03]} {[%emt 00:00:04]} Bg4 {[%clk 00:04:39]} {[%emt 00:00:22]}
9. Ne5 {[%clk 00:05:02]} {[%emt 00:00:04]} Be6 {[%clk 00:04:36]} {[%emt
00:00:07]} 10. Be3 {[%clk 00:05:00]} {[%emt 00:00:03]} O-O {[%clk 00:04:34]}
{[%emt 00:00:06]} 11. Rd1 {[%clk 00:04:51]} {[%emt 00:00:12]} a5 {[%clk
00:04:23]} {[%emt 00:00:15]} 12. Be2 {[%clk 00:04:42]} {[%emt 00:00:10]} a4
{[%clk 00:04:25]} {[%emt 00:00:02]} 13. O-O {[%clk 00:04:40]} {[%emt 00:00:07]}
Na6 {[%clk 00:04:26]} {[%emt 00:00:02]} 14. d5 {[%clk 00:04:06]} {[%emt
00:00:37]} Bc8 {[%clk 00:04:05]} {[%emt 00:00:23]} 15. Nf3 {[%emt 00:00:16]}
Nb4 {[%clk 00:03:08]} {[%emt 00:00:48]} 16. Qb1 {[%clk 00:03:54]} {[%emt
00:00:11]} a3 {[%clk 00:02:58]} {[%emt 00:00:17]} 17. bxa3 {[%clk 00:03:46]}
{[%emt 00:00:11]} Rxa3 {[%clk 00:02:57]} {[%emt 00:00:04]} 18. Nb5 {[%clk
00:03:21]} {[%emt 00:00:28]} Rxa2 {[%clk 00:02:52]} {[%emt 00:00:08]} 19. Bd2
{[%clk 00:03:19]} {[%emt 00:00:05]} Rb2 {[%clk 00:02:49]} {[%emt 00:00:06]} 20.
Qc1 {[%clk 00:03:16]} {[%emt 00:00:05]} Rc2 {[%clk 00:01:05]} {[%emt 00:01:48]}
21. Qa3 {[%clk 00:03:13]} {[%emt 00:00:06]} 1-0